fUST/lending_fUST_20250709
["ID","MTS","AMOUNT","RATE_DAILY","PERIOD"]
[370421913,1752012649327,-460.0,0.00020273,2]
[370421914,1752012649337,-460.0,0.00020273,2]
[370421915,1752012649346,-460.0,0.00020273,2]
[370421916,1752012649355,-460.0,0.00020273,2]
[370421917,1752012649365,-460.0,0.00020273,2]
[370421918,1752012649375,-460.0,0.00020273,2]
[370421919,1752012649385,-460.0,0.00020273,2]
[370421920,1752012649395,-460.0,0.00020273,2]
[370421921,1752012649405,-460.0,0.00020273,2]
[370421922,1752012649414,-561.45,0.00020273,2]
[370421923,1752012649424,-460.0,0.00020273,2]
[370421924,1752012649433,-460.0,0.00020273,2]
[370421925,1752012649443,-563.27,0.00020273,2]
[370421926,1752012649452,-460.0,0.00020273,2]
[370421927,1752012649462,-519.13,0.00020273,2]
[370421928,1752012649471,-460.0,0.00020273,2]
[370421929,1752012649481,-151.0,0.00020273,2]
[370421930,1752012649490,-460.0,0.00020273,2]
[370421931,1752012649499,-460.0,0.00020273,2]
[370421932,1752012649509,-162.177109,0.00020273,2]
[370421933,1752012649518,-162.177109,0.00020273,2]
[370421934,1752012649528,-460.0,0.00020273,2]
[370421935,1752012649537,-357.89,0.00020273,2]
[370421936,1752012649547,-226.056982,0.00020273,2]
[370421937,1752012649557,-460.0,0.00020273,2]
[370421938,1752012649566,-226.056982,0.00020273,2]
[370421939,1752012649575,-151.0,0.00020273,2]
[370421940,1752012649585,-151.0,0.00020273,2]
[370421941,1752012649594,-886.1,0.00020273,2]
[370421942,1752012649603,-460.0,0.00020273,2]
[370421943,1752012649613,-460.0,0.00020273,2]
[370421944,1752012649623,-151.0,0.00020273,2]
[370421945,1752012649632,-592.74,0.00020273,2]
[370421946,1752012649642,-151.0,0.00020273,2]
[370421947,1752012649651,-460.0,0.00020273,2]
[370421948,1752012649661,-3491.02,0.00020273,2]
[370421949,1752012649671,-460.0,0.00020273,2]
[370421950,1752012649680,-1031.32,0.00020273,2]
[370421951,1752012649690,-595.56,0.00020273,2]
[370421952,1752012649699,-460.0,0.00020273,2]
[370421953,1752012649708,-460.0,0.00020273,2]
[370421954,1752012649719,-460.0,0.00020273,2]
[370421955,1752012649732,-1029.99,0.00020273,2]
[370421956,1752012649742,-1051.59,0.00020273,2]
[370421957,1752012649751,-1752.56,0.00020273,2]
[370421958,1752012649763,-460.0,0.00020273,2]
[370421959,1752012649773,-185.92,0.00020273,2]
[370421960,1752012649783,-460.0,0.00020273,2]
[370421961,1752012649795,-1099.48,0.00020273,2]
[370421962,1752012649806,-460.0,0.00020273,2]
[370421963,1752012649816,-460.0,0.00020273,2]
[370421964,1752012649827,-2258.7,0.00020273,2]
[370421965,1752012649837,-691.29,0.00020273,2]
[370421966,1752012649847,-460.0,0.00020273,2]
[370421967,1752012649859,-460.0,0.00020273,2]
[370421968,1752012649869,-460.0,0.00020273,2]
[370421969,1752012649878,-460.0,0.00020273,2]
[370421970,1752012649888,-460.0,0.00020273,2]
[370421971,1752012649898,-513.91,0.00020273,2]
[370421972,1752012649908,-1523.25,0.00020273,2]
[370421973,1752012649926,-460.0,0.00020273,2]
[370421974,1752012649938,-460.0,0.00020273,2]
[370421975,1752012649947,-460.0,0.00020273,2]
[370421976,1752012649957,-504.1,0.00020273,2]
[370421977,1752012649966,-704.17,0.00020273,2]
[370421978,1752012649975,-460.0,0.00020273,2]
[370421979,1752012649985,-2041.38,0.00020273,2]
[370421980,1752012649995,-267.94857808,0.00020273,2]
[370421981,1752012650005,-2818.76,0.00020273,2]
[370421982,1752012650016,-460.0,0.00020273,2]
[370421983,1752012650027,-1935.51,0.00020273,2]
[370421984,1752012650038,-738.99,0.00020273,2]
[370421985,1752012650048,-1660.85,0.00020273,2]
[370421986,1752012650059,-513.68,0.00020273,2]
[370421987,1752012650069,-498.23,0.00020273,2]
[370421988,1752012650080,-460.0,0.00020273,2]
[370421989,1752012650089,-460.0,0.00020273,2]
[370421990,1752012650100,-460.0,0.00020273,2]
[370421991,1752012650110,-460.0,0.00020273,2]
[370421992,1752012650119,-460.0,0.00020273,2]
[370421993,1752012650129,-460.0,0.00020273,2]
[370421994,1752012650139,-768.37,0.00020273,2]
[370421995,1752012650149,-1401.53,0.00020273,2]
[370421996,1752012650159,-460.0,0.00020273,2]
[370421997,1752012650168,-460.0,0.00020273,2]
[370421998,1752012650178,-1091.28,0.00020273,2]
[370421999,1752012650187,-554.91,0.00020273,2]
[370422000,1752012650197,-460.0,0.00020273,2]
[370422001,1752012650206,-936.45,0.00020273,2]
[370422002,1752012650215,-460.0,0.00020273,2]
[370422003,1752012650224,-460.0,0.00020273,2]
[370422004,1752012650234,-460.0,0.00020273,2]
[370422005,1752012650243,-1094.87,0.00020273,2]
[370422006,1752012650252,-460.0,0.00020273,2]
[370422007,1752012650261,-460.0,0.00020273,2]
[370422008,1752012650271,-460.0,0.00020273,2]
[370422009,1752012650280,-500.17,0.00020273,2]
[370422010,1752012650289,-151.0,0.000203,3]
[370422011,1752012650298,-151.0,0.000203,4]
[370422012,1752012650308,-151.0,0.000203,3]
[370422013,1752012650317,-6253.0396028,0.00020314,3]
[370422014,1752012650326,-151.0,0.00020314,2]
[370422015,1752012650336,-151.0,0.00020314,2]
[370422016,1752012650346,-215.0738,0.0002033,2]
[370422017,1752012650355,-297.287078,0.00020335,2]
[370422018,1752012650364,-500.0,0.00020383,2]
[370422019,1752012650374,-641.0,0.000204,2]
[370422020,1752012650384,-297.287078,0.0002043,2]
[370422021,1752012650392,-177.7959578,0.00020465,2]
[370422022,1752012650402,-153.0,0.00020465,2]
[370422023,1752012650411,-576.1435385,0.00020465,2]
[370422024,1752012650420,-159.5204994,0.00020465,2]
[370422025,1752012650430,-153.0,0.00020465,2]
[370422026,1752012650439,-159.5204994,0.00020465,2]
[370422027,1752012650448,-177.7959578,0.00020465,2]
[370422028,1752012650457,-576.1435385,0.00020465,2]
[370422029,1752012650467,-177.7959578,0.00020465,2]
[370422030,1752012650476,-159.5204994,0.00020465,2]
[370422031,1752012650485,-576.1435385,0.00020465,2]
[370422032,1752012650495,-159.5204994,0.00020465,2]
[370422033,1752012650504,-177.7959578,0.00020465,2]
[370422034,1752012650513,-1150.8020514,0.00020465,2]
[370422035,1752012650522,-354.841335,0.00020465,2]
[370422036,1752012650531,-252.5335148,0.00020465,2]
[370422037,1752012650541,-151.0,0.000205,4]
[370422038,1752012650551,-151.0,0.000205,4]
[370422039,1752012650564,-151.0,0.000205,4]
[370422040,1752012650575,-1000.0,0.00020501,2]
[370422041,1752012650584,-76331.52382346,0.0002052,2]
[370422042,1752012650594,-848.15551661,0.00020521,3]
[370422043,1752012650604,-160.0,0.00020521,3]
[370422044,1752012650614,-6253.0396028,0.00020521,3]
[370422045,1752012650624,-297.287078,0.00020524,2]
[370422046,1752012650634,-460.0,0.00020547,2]
[370422047,1752012650645,-460.0,0.00020547,2]
[370422048,1752012650655,-460.0,0.00020547,2]
[370422049,1752012650665,-151.0,0.00020547,2]
[370422050,1752012650675,-151.0,0.00020547,2]
[370422051,1752012650684,-460.0,0.00020547,2]
[370422052,1752012650694,-151.0,0.00020547,2]
[370422053,1752012650705,-460.0,0.00020547,2]
[370422054,1752012650715,-151.0,0.00020547,2]
[370422055,1752012650728,-460.0,0.00020547,2]
[370422056,1752012650739,-460.0,0.00020547,2]
[370422057,1752012650749,-460.0,0.00020547,2]
[370422058,1752012650759,-600.13248342,0.00020547,2]
[370422059,1752012650771,-151.0,0.00020547,2]
[370422060,1752012650781,-460.0,0.00020547,2]
[370422061,1752012650790,-460.0,0.00020547,2]
[370422062,1752012650803,-561.45,0.00020547,2]
[370422063,1752012650815,-460.0,0.00020547,2]
[370422064,1752012650824,-460.0,0.00020547,2]
[370422065,1752012650834,-151.0,0.00020547,2]
[370422066,1752012650843,-563.27,0.00020547,2]
[370422067,1752012650853,-526.93115534,0.00020547,2]
[370422068,1752012650863,-519.13,0.00020547,2]
[370422069,1752012650873,-460.0,0.00020547,2]
[370422070,1752012650882,-460.0,0.00020547,2]
[370422071,1752012650892,-460.0,0.00020547,2]
[370422072,1752012650901,-460.0,0.00020547,2]
[370422073,1752012650911,-460.0,0.00020547,2]
[370422074,1752012650920,-886.1,0.00020547,2]
[370422075,1752012650930,-460.0,0.00020547,2]
[370422076,1752012650940,-592.74,0.00020547,2]
[370422077,1752012650950,-460.0,0.00020547,2]
[370422078,1752012650960,-3491.02,0.00020547,2]
[370422079,1752012650971,-460.0,0.00020547,2]
[370422080,1752012650981,-1031.32,0.00020547,2]
[370422081,1752012650991,-595.56,0.00020547,2]
[370422082,1752012651001,-460.0,0.00020547,2]
[370422083,1752012651011,-460.0,0.00020547,2]
[370422084,1752012651022,-460.0,0.00020547,2]
[370422085,1752012651031,-1029.99,0.00020547,2]
[370422086,1752012651041,-1051.59,0.00020547,2]
[370422087,1752012651051,-1752.56,0.00020547,2]
[370422088,1752012651060,-460.0,0.00020547,2]
[370422089,1752012651070,-460.0,0.00020547,2]
[370422090,1752012651199,-1099.48,0.00020547,2]
[370422091,1752012651210,-460.0,0.00020547,2]
[370422092,1752012651221,-460.0,0.00020547,2]
[370422093,1752012651232,-2258.7,0.00020547,2]
[370422094,1752012651244,-208.243331,0.00020547,2]
[370422095,1752012651254,-691.29,0.00020547,2]
[370422096,1752012651264,-460.0,0.00020547,2]
[370422097,1752012651274,-460.0,0.00020547,2]
[370422098,1752012651284,-460.0,0.00020547,2]
[370422099,1752012651294,-460.0,0.00020547,2]
[370422100,1752012651305,-460.0,0.00020547,2]
[370422101,1752012651315,-513.91,0.00020547,2]
[370422102,1752012651324,-1523.25,0.00020547,2]
[370422103,1752012651333,-460.0,0.00020547,2]
[370422104,1752012651342,-202.58708216,0.00020547,2]
[370422105,1752012651352,-460.0,0.00020547,2]
[370422106,1752012651361,-504.1,0.00020547,2]
[370422107,1752012651371,-460.0,0.00020547,2]
[370422108,1752012651381,-704.17,0.00020547,2]
[370422109,1752012651390,-2041.38,0.00020547,2]
[370422110,1752012651399,-2818.76,0.00020547,2]
[370422111,1752012651408,-460.0,0.00020547,2]
[370422112,1752012651418,-1935.51,0.00020547,2]
[370422113,1752012651427,-738.99,0.00020547,2]
[370422114,1752012651436,-1660.85,0.00020547,2]
[370422115,1752012651446,-151.0,0.00020547,2]
[370422116,1752012651455,-513.68,0.00020547,2]
[370422117,1752012651465,-151.0,0.00020547,2]
[370422118,1752012651475,-498.23,0.00020547,2]
[370422119,1752012651484,-460.0,0.00020547,2]
[370422120,1752012651493,-546.12422835,0.00020547,2]
[370422121,1752012651502,-151.0,0.00020547,2]
[370422122,1752012651511,-460.0,0.00020547,2]
[370422123,1752012651520,-460.0,0.00020547,2]
[370422124,1752012651530,-460.0,0.00020547,2]
[370422125,1752012651539,-768.37,0.00020547,2]
[370422126,1752012651548,-460.0,0.00020547,2]
[370422127,1752012651558,-151.0,0.00020547,2]
[370422128,1752012651567,-1401.53,0.00020547,2]
[370422129,1752012651577,-151.0,0.00020547,2]
[370422130,1752012651587,-460.0,0.00020547,2]
[370422131,1752012651596,-460.0,0.00020547,2]
[370422132,1752012651606,-1091.28,0.00020547,2]
[370422133,1752012651615,-554.91,0.00020547,2]
[370422134,1752012651625,-151.0,0.00020547,2]
[370422135,1752012651637,-151.0,0.00020547,2]
[370422136,1752012651647,-460.0,0.00020547,2]
[370422137,1752012651656,-164.82134019,0.00020547,2]
[370422138,1752012651666,-936.45,0.00020547,2]
[370422139,1752012651676,-460.0,0.00020547,2]
[370422140,1752012651686,-460.0,0.00020547,2]
[370422141,1752012651695,-1094.87,0.00020547,2]
[370422142,1752012651705,-460.0,0.00020547,2]
[370422143,1752012651714,-431.12,0.00020547,2]
[370422144,1752012651728,-460.0,0.00020547,2]
[370422145,1752012651738,-500.17,0.00020547,2]
[370422146,1752012651748,-152.636,0.00020574,2]
[370422147,1752012651759,-179.889,0.00020574,2]
[370422148,1752012651770,-151.0,0.000206,4]
[370422149,1752012651780,-151.0,0.00020611,2]
[370422150,1752012651790,-201.829,0.00020611,2]
[370422151,1752012651800,-214.063,0.00020611,2]
[370422152,1752012651810,-248.989,0.00020611,2]
[370422153,1752012651819,-150.318,0.00020611,2]
[370422154,1752012651829,-249.539,0.00020611,2]
[370422155,1752012651840,-259.456,0.00020611,2]
[370422156,1752012651849,-217.056,0.00020611,2]
[370422157,1752012651859,-967.0,0.00020611,2]
[370422158,1752012651868,-2153.0,0.00020611,2]
[370422159,1752012651878,-678.0,0.00020611,2]
[370422160,1752012651888,-407.0,0.00020611,2]
[370422161,1752012651898,-297.287078,0.00020619,2]
[370422162,1752012651908,-500.0,0.00020645,2]
[370422163,1752012651918,-420.0,0.00020679,2]
[370422164,1752012651927,-1214.09190039,0.00020692,2]
[370422165,1752012651936,-151.0,0.000207,4]
[370422166,1752012651945,-297.287078,0.00020713,2]
[370422167,1752012651954,-213.8115056,0.00020728,3]
[370422168,1752012651964,-6253.0396028,0.00020728,3]
[370422169,1752012651973,-894.274,0.00020778,2]
[370422170,1752012651983,-1680.0,0.00020779,2]
[370422171,1752012651992,-151.0,0.000208,3]
[370422172,1752012652002,-151.0,0.000208,4]
[370422173,1752012652012,-297.287078,0.00020808,2]
[370422174,1752012652021,-780.08567482,0.00020816,2]
[370422175,1752012652042,-412.26,0.00019726,2]
[370422176,1752012652053,-1219.91432518,0.00020816,2]
[370422177,1752012652064,-183.00872052,0.00020821,2]
[370422178,1752012652074,-460.0,0.00020821,2]
[370422179,1752012652084,-460.0,0.00020821,2]
[370422180,1752012652095,-460.0,0.00020821,2]
[370422181,1752012652105,-460.0,0.00020821,2]
[370422182,1752012652115,-460.0,0.00020821,2]
[370422183,1752012652125,-460.0,0.00020821,2]
[370422184,1752012652135,-460.0,0.00020821,2]
[370422185,1752012652144,-460.0,0.00020821,2]
[370422186,1752012652153,-460.0,0.00020821,2]
[370422187,1752012652162,-561.45,0.00020821,2]
[370422188,1752012652171,-495.31918043,0.00020821,2]
[370422189,1752012652181,-460.0,0.00020821,2]
[370422190,1752012652190,-563.27,0.00020821,2]
[370422191,1752012652199,-519.13,0.00020821,2]
[370422192,1752012652209,-460.0,0.00020821,2]
[370422193,1752012652218,-151.0,0.00020821,2]
[370422194,1752012652228,-460.0,0.00020821,2]
[370422195,1752012652237,-460.0,0.00020821,2]
[370422196,1752012652246,-162.177109,0.00020821,2]
[370422197,1752012652255,-162.177109,0.00020821,2]
[370422198,1752012652265,-460.0,0.00020821,2]
[370422199,1752012652274,-226.056982,0.00020821,2]
[370422200,1752012652283,-226.056982,0.00020821,2]
[370422201,1752012652292,-151.0,0.00020821,2]
[370422202,1752012652301,-151.0,0.00020821,2]
[370422203,1752012652310,-886.1,0.00020821,2]
[370422204,1752012652320,-460.0,0.00020821,2]
[370422205,1752012652330,-151.0,0.00020821,2]
[370422206,1752012652339,-592.74,0.00020821,2]
[370422207,1752012652348,-217.345242,0.00020821,2]
[370422208,1752012652357,-460.0,0.00020821,2]
[370422209,1752012652366,-3491.02,0.00020821,2]
[370422210,1752012652376,-460.0,0.00020821,2]
[370422211,1752012652385,-151.0,0.00020821,2]
[370422212,1752012652394,-1031.32,0.00020821,2]
[370422213,1752012652403,-595.56,0.00020821,2]
[370422214,1752012652412,-460.0,0.00020821,2]
[370422215,1752012652422,-239.633135,0.00020821,2]
[370422216,1752012652431,-460.0,0.00020821,2]
[370422217,1752012652441,-460.0,0.00020821,2]
[370422218,1752012652450,-1029.99,0.00020821,2]
[370422219,1752012652459,-1051.59,0.00020821,2]
[370422220,1752012652469,-1752.56,0.00020821,2]
[370422221,1752012652478,-460.0,0.00020821,2]
[370422222,1752012652487,-221.74,0.00020821,2]
[370422223,1752012652497,-1099.48,0.00020821,2]
[370422224,1752012652506,-460.0,0.00020821,2]
[370422225,1752012652516,-460.0,0.00020821,2]
[370422226,1752012652525,-2258.7,0.00020821,2]
[370422227,1752012652534,-691.29,0.00020821,2]
[370422228,1752012652543,-460.0,0.00020821,2]
[370422229,1752012652552,-460.0,0.00020821,2]
[370422230,1752012652561,-460.0,0.00020821,2]
[370422231,1752012652571,-460.0,0.00020821,2]
[370422232,1752012652581,-460.0,0.00020821,2]
[370422233,1752012652591,-1523.25,0.00020821,2]
[370422234,1752012652600,-460.0,0.00020821,2]
[370422235,1752012652610,-460.0,0.00020821,2]
[370422236,1752012652619,-504.1,0.00020821,2]
[370422237,1752012652629,-704.17,0.00020821,2]
[370422238,1752012652639,-460.0,0.00020821,2]
[370422239,1752012652649,-2041.38,0.00020821,2]
[370422240,1752012652658,-2818.76,0.00020821,2]
[370422241,1752012652667,-460.0,0.00020821,2]
[370422242,1752012652677,-1935.51,0.00020821,2]
[370422243,1752012652686,-738.99,0.00020821,2]
[370422244,1752012652695,-1660.85,0.00020821,2]
[370422245,1752012652705,-513.68,0.00020821,2]
[370422246,1752012652714,-498.23,0.00020821,2]
[370422247,1752012652727,-460.0,0.00020821,2]
[370422248,1752012652736,-460.0,0.00020821,2]
[370422249,1752012652745,-460.0,0.00020821,2]
[370422250,1752012652754,-460.0,0.00020821,2]
[370422251,1752012652765,-768.37,0.00020821,2]
[370422252,1752012652775,-460.0,0.00020821,2]
[370422253,1752012652784,-1401.53,0.00020821,2]
[370422254,1752012652794,-460.0,0.00020821,2]
[370422255,1752012652804,-1091.28,0.00020821,2]
[370422256,1752012652813,-554.91,0.00020821,2]
[370422257,1752012652823,-460.0,0.00020821,2]
[370422258,1752012652832,-936.45,0.00020821,2]
[370422259,1752012652841,-460.0,0.00020821,2]
[370422260,1752012652851,-460.0,0.00020821,2]
[370422261,1752012652860,-1094.87,0.00020821,2]
[370422262,1752012652870,-460.0,0.00020821,2]
[370422263,1752012652880,-460.0,0.00020821,2]
[370422264,1752012652890,-500.17,0.00020821,2]
[370422265,1752012652899,-160.18916067,0.00020883,2]
[370422266,1752012652909,-62053.06500358,0.00020884,2]
[370422267,1752012652918,-151.0,0.00020884,2]
[370422268,1752012652928,-176.051126,0.00020884,2]
[370422269,1752012652937,-171.287742,0.00020884,2]
[370422270,1752012652947,-151.0,0.00020884,2]
[370422271,1752012652956,-151.0,0.00020884,2]
[370422272,1752012652966,-151.0,0.00020884,2]
[370422273,1752012652975,-151.0,0.00020884,2]
[370422274,1752012652985,-151.0,0.00020884,2]
[370422275,1752012652994,-151.0,0.00020884,2]
[370422276,1752012653003,-297.287078,0.00020903,2]
[370422277,1752012653012,-2928.14759703,0.00020934,4]
[370422278,1752012653025,-2542.6179842,0.00020934,4]
[370422279,1752012653266,-512.35,0.00019178,2]
[370422280,1752012653275,-460.0,0.00019178,2]
[370422281,1752012653284,-335.718235,0.00019178,2]
[370422282,1752012653294,-1000.0,0.000195,2]
[370422283,1752012653303,-460.0,0.00019726,2]
[370422284,1752012653312,-318.0,0.00019999,2]
[370422285,1752012653322,-460.0,0.0002,2]
[370422286,1752012653331,-1000.0,0.0002,2]
[370422287,1752012653340,-460.0,0.00020273,2]
[370422288,1752012653350,-460.0,0.00020547,2]
[370422289,1752012653359,-460.0,0.00020821,2]
[370422290,1752012653368,-782.27402157,0.00020934,4]
[370422291,1752012653378,-297.287078,0.00020997,2]
[370422292,1752012653388,-1259.79360887,0.00021,2]
[370422293,1752012653397,-151.0,0.00021,4]
[370422294,1752012653406,-1824.120215,0.00021,2]
[370422295,1752012653415,-151.0,0.00021,3]
[370422296,1752012653425,-151.0,0.00021049,2]
[370422297,1752012653434,-151.0,0.00021049,2]
[370422298,1752012653443,-1500.0,0.00021049,2]
[370422299,1752012653453,-297.287078,0.00021092,2]
[370422300,1752012653462,-460.0,0.00021095,2]
[370422301,1752012653471,-460.0,0.00021095,2]
[370422302,1752012653481,-151.0,0.00021095,2]
[370422303,1752012653490,-460.0,0.00021095,2]
[370422304,1752012653499,-460.0,0.00021095,2]
[370422305,1752012653508,-460.0,0.00021095,2]
[370422306,1752012653517,-460.0,0.00021095,2]
[370422307,1752012653526,-460.0,0.00021095,2]
[370422308,1752012653649,-460.0,0.00021095,2]
[370422309,1752012653659,-460.0,0.00021095,2]
[370422310,1752012653668,-561.45,0.00021095,2]
[370422311,1752012653677,-460.0,0.00021095,2]
[370422312,1752012653686,-563.27,0.00021095,2]
[370422313,1752012653695,-519.13,0.00021095,2]
[370422314,1752012653704,-460.0,0.00021095,2]
[370422315,1752012653713,-460.0,0.00021095,2]
[370422316,1752012653725,-460.0,0.00021095,2]
[370422317,1752012653735,-460.0,0.00021095,2]
[370422318,1752012653744,-151.0,0.00021095,2]
[370422319,1752012653753,-151.0,0.00021095,2]
[370422320,1752012653762,-886.1,0.00021095,2]
[370422321,1752012653773,-151.0,0.00021095,2]
[370422322,1752012653782,-592.74,0.00021095,2]
[370422323,1752012653791,-460.0,0.00021095,2]
[370422324,1752012653802,-3491.02,0.00021095,2]
[370422325,1752012653813,-460.0,0.00021095,2]
[370422326,1752012653822,-1031.32,0.00021095,2]
[370422327,1752012653832,-595.56,0.00021095,2]
[370422328,1752012653842,-503.68,0.00021095,2]
[370422329,1752012653853,-460.0,0.00021095,2]
[370422330,1752012653863,-460.0,0.00021095,2]
[370422331,1752012653873,-1029.99,0.00021095,2]
[370422332,1752012653883,-1051.59,0.00021095,2]
[370422333,1752012653893,-1752.56,0.00021095,2]
[370422334,1752012653902,-460.0,0.00021095,2]
[370422335,1752012653912,-1099.48,0.00021095,2]
[370422336,1752012653921,-460.0,0.00021095,2]
[370422337,1752012653931,-2258.7,0.00021095,2]
[370422338,1752012653941,-151.0,0.00021095,2]
[370422339,1752012653950,-691.29,0.00021095,2]
[370422340,1752012653959,-513.03,0.00021095,2]
[370422341,1752012653969,-460.0,0.00021095,2]
[370422342,1752012653979,-460.0,0.00021095,2]
[370422343,1752012653988,-460.0,0.00021095,2]
[370422344,1752012653998,-460.0,0.00021095,2]
[370422345,1752012654007,-1523.25,0.00021095,2]
[370422346,1752012654016,-460.0,0.00021095,2]
[370422347,1752012654026,-460.0,0.00021095,2]
[370422348,1752012654036,-504.1,0.00021095,2]
[370422349,1752012654047,-704.17,0.00021095,2]
[370422350,1752012654057,-460.0,0.00021095,2]
[370422351,1752012654066,-2041.38,0.00021095,2]
[370422352,1752012654075,-2818.76,0.00021095,2]
[370422353,1752012654086,-460.0,0.00021095,2]
[370422354,1752012654096,-1935.51,0.00021095,2]
[370422355,1752012654106,-738.99,0.00021095,2]
[370422356,1752012654116,-1660.85,0.00021095,2]
[370422357,1752012654127,-513.68,0.00021095,2]
[370422358,1752012654137,-498.23,0.00021095,2]
[370422359,1752012654147,-460.0,0.00021095,2]
[370422360,1752012654156,-460.0,0.00021095,2]
[370422361,1752012654165,-460.0,0.00021095,2]
[370422362,1752012654175,-460.0,0.00021095,2]
[370422363,1752012654184,-768.37,0.00021095,2]
[370422364,1752012654194,-460.0,0.00021095,2]
[370422365,1752012654203,-1401.53,0.00021095,2]
[370422366,1752012654213,-460.0,0.00021095,2]
[370422367,1752012654222,-1091.28,0.00021095,2]
[370422368,1752012654232,-554.91,0.00021095,2]
[370422369,1752012654241,-460.0,0.00021095,2]
[370422370,1752012654250,-936.45,0.00021095,2]
[370422371,1752012654260,-460.0,0.00021095,2]
[370422372,1752012654269,-460.0,0.00021095,2]
[370422373,1752012654278,-1094.87,0.00021095,2]
[370422374,1752012654288,-460.56,0.00021095,2]
[370422375,1752012654298,-460.0,0.00021095,2]
[370422376,1752012654308,-500.17,0.00021095,2]
[370422377,1752012654317,-460.0,0.00021095,2]
[370422378,1752012654327,-6253.0396028,0.00021141,4]
[370422379,1752012654336,-297.287078,0.00021186,2]
[370422380,1752012654346,-151.0,0.000212,3]
[370422381,1752012654355,-162.177109,0.00021201,2]
[370422382,1752012654365,-162.177109,0.00021201,2]
[370422383,1752012654374,-297.287078,0.00021281,2]
[370422384,1752012654384,-6253.0396028,0.00021348,5]
[370422385,1752012654394,-2500.0,0.00021364,2]
[370422386,1752012654403,-201.95560924,0.00021368,2]
[370422387,1752012654413,-460.0,0.00021369,2]
[370422388,1752012654422,-460.0,0.00021369,2]
[370422389,1752012654432,-249.46,0.00021369,2]
[370422390,1752012654441,-460.0,0.00021369,2]
[370422391,1752012654451,-460.0,0.00021369,2]
[370422392,1752012654460,-460.0,0.00021369,2]
[370422393,1752012654470,-460.0,0.00021369,2]
[370422394,1752012654479,-360.23,0.00021369,2]
[370422395,1752012654489,-460.0,0.00021369,2]
[370422396,1752012654498,-561.45,0.00021369,2]
[370422397,1752012654508,-460.0,0.00021369,2]
[370422398,1752012654517,-563.27,0.00021369,2]
[370422399,1752012654526,-519.13,0.00021369,2]
[370422400,1752012654535,-460.0,0.00021369,2]
[370422401,1752012654545,-151.0,0.00021369,2]
[370422402,1752012654555,-460.0,0.00021369,2]
[370422403,1752012654564,-460.0,0.00021369,2]
[370422404,1752012654573,-460.0,0.00021369,2]
[370422405,1752012654582,-226.056982,0.00021369,2]
[370422406,1752012654591,-226.056982,0.00021369,2]
[370422407,1752012654600,-886.1,0.00021369,2]
[370422408,1752012654610,-592.74,0.00021369,2]
[370422409,1752012654619,-460.0,0.00021369,2]
[370422410,1752012654630,-128.59798626,0.00021369,2]
[370422411,1752012654671,-1236.92766861,0.00021369,2]
[370422412,1752012654683,-2125.49434513,0.00021369,2]